bitfinex/quotes_ETHUSD_20250106
["timestamp","ask_amount","ask_price","bid_price","bid_amount"]
[1736189129480,2.71105,3688.6,3688.1,0.02711105]
[1736189129699,0.02493737,3688.2,3688.1,0.02711105]
[1736189130191,0.38175157,3688.9,3688.1,0.02711105]
[1736189130427,0.02493737,3688.2,3688.1,0.02711105]
[1736189130627,2.71098,3688.7,3688.1,0.02711105]
[1736189130835,0.02493737,3688.2,3688.1,0.02711105]
[1736189130975,2.71098,3688.7,3688.1,0.02711105]
[1736189131176,0.02493737,3688.2,3688.1,0.02711105]
[1736189131410,2.71098,3688.7,3688.1,0.02711105]
[1736189131604,0.02493737,3688.2,3688.1,0.02711105]
[1736189131824,2.71098,3688.7,3688.1,0.02711105]
[1736189131974,0.02493737,3688.2,3688.1,0.02711105]
[1736189132176,2.71098,3688.7,3688.1,0.02711105]
[1736189132433,0.02493737,3688.2,3688.0,0.7765]
[1736189132783,2.71104,3688.7,3688.0,0.7765]
[1736189133017,0.02489485,3688.1,3688.0,0.7765]
[1736189133236,2.71104,3688.7,3688.0,0.7765]
[1736189133540,0.02489485,3688.1,3688.0,0.7765]
[1736189133743,0.7754,3688.6,3688.0,0.7765]
[1736189134213,0.02492688,3688.5,3688.0,0.7765]
[1736189135152,0.02492688,3688.5,3688.1,0.02711145]
[1736189135734,2.73605688,3688.5,3688.0,0.7765]
[1736189136054,2.73605688,3688.5,3687.4,5.28519906]
[1736189136055,0.35114569,3688.4,3687.6,0.8279]
[1736189136201,2.73605688,3688.5,3687.6,0.8279]
[1736189136397,0.02420353,3688.3,3687.6,0.8279]
[1736189136601,2.71113,3688.5,3687.6,0.8279]
[1736189136946,2.71143,3688.1,3687.6,0.8279]
[1736189137310,0.0241795,3688.0,3687.6,0.8279]
[1736189137653,0.0241795,3688.0,3687.6,0.81375511]
[1736189139182,2.71157,3687.9,3687.6,0.81375511]
[1736189139483,3.08721681,3687.9,3687.6,0.81375511]
[1736189139848,0.37564681,3687.9,3687.6,0.81375511]
[1736189140053,0.7533,3687.3,3686.2,2.71276]
[1736189140276,2.57333906,3687.1,3685.7,1.12605031]
[1736189140433,2.71148,3688.1,3685.7,1.12605031]
[1736189140434,0.7533,3686.4,3685.7,1.12605031]
[1736189140795,2.71306,3685.9,3685.6,1.12605031]
[1736189140995,2.71294,3686.1,3685.6,1.12605031]
[1736189141295,2.71298,3686.0,3685.6,1.12605031]
[1736189141593,2.71304,3685.9,3685.6,1.12605031]
[1736189141937,0.35876955,3686.1,3685.6,1.12605031]
[1736189142184,0.7804,3685.7,3685.6,1.12605031]
[1736189142382,2.71318,3685.7,3685.6,1.12605031]
[1736189142538,2.71318,3685.7,3685.1,0.8009]
[1736189143879,3.0,3685.9,3685.1,0.8009]
[1736189144196,6.68429086,3685.9,3685.1,0.8009]
[1736189146289,2.71315,3685.8,3684.8,0.55]
[1736189146497,2.71315,3685.8,3684.6,0.7678]
[1736189146700,2.57333906,3685.7,3684.6,0.7678]
[1736189146881,2.71343,3685.4,3684.6,0.7678]
[1736189147095,3.10201597,3685.4,3684.6,0.7678]
[1736189147276,2.57333906,3684.8,3684.0,0.8004]
[1736189147450,2.71396,3684.7,3684.0,0.8004]
[1736189147797,2.57333906,3684.5,3684.0,0.8004]
[1736189148097,2.57333906,3684.5,3683.5,0.7854]
[1736189148295,5.28763906,3684.2,3683.5,0.7854]
[1736189148513,2.71436,3684.1,3683.1,0.8195]
[1736189148847,2.57333906,3683.9,3683.1,0.8195]
[1736189149064,2.57333906,3683.9,3683.1,0.005]
[1736189149350,2.71464,3683.8,3683.1,0.005]
[1736189149552,2.57333906,3683.9,3683.1,0.005]
[1736189149991,3.16326236,3683.9,3683.1,0.005]
[1736189150194,3.36913906,3683.6,3683.1,0.005]
[1736189150395,0.7958,3683.6,3683.1,0.005]
[1736189150560,0.7958,3684.0,3683.1,0.005]
[1736189150769,0.7958,3684.0,3683.1,0.03214772]
[1736189151099,0.61141391,3684.2,3683.2,0.8093]
[1736189151301,0.61141391,3684.2,3683.3,0.02714641]
[1736189152151,3.61141391,3684.2,3683.2,0.8093]
[1736189152367,0.71457339,3684.1,3683.2,0.8093]
[1736189152567,0.71457339,3684.1,3683.3,0.0271464]
[1736189153248,0.71457339,3684.1,3683.2,0.8093]
[1736189153400,0.71457339,3684.1,3683.3,0.02714641]
[1736189154501,0.71457339,3684.1,3683.2,0.8093]
[1736189154981,0.71457339,3684.1,3683.3,0.02714642]
[1736189155285,0.74171988,3684.1,3683.2,0.29420662]
[1736189155455,0.74171988,3684.1,3683.3,0.02714643]
[1736189155859,0.61141391,3684.2,3683.3,0.02714643]
[1736189156058,0.02714649,3684.1,3683.2,3.00921662]
[1736189156260,0.02714649,3684.1,3683.3,2.71495]
[1736189156515,0.8201,3684.4,3683.4,0.5575]
[1736189156674,0.02714649,3684.3,3683.4,0.5575]
[1736189157311,0.64016604,3684.3,3683.4,0.5575]
[1736189157917,0.64016604,3684.3,3683.4,2.72236]
[1736189158336,0.64016604,3684.3,3683.3,0.55]
[1736189158676,0.64016604,3684.3,3683.4,0.02714513]
[1736189159092,0.64016604,3684.3,3683.3,3.26495]
[1736189159412,0.64016604,3684.3,3683.4,0.02714513]
[1736189160287,0.64016604,3684.3,3683.3,3.26495]
[1736189162789,0.64016604,3684.3,3683.3,0.55]
[1736189162990,0.02714649,3684.3,3683.5,0.0075]
[1736189163320,0.7604,3684.7,3683.7,3.26459]
[1736189163503,0.02714649,3684.6,3683.7,3.26459]
[1736189164582,0.7604,3684.7,3683.8,0.027142]
[1736189164812,0.7604,3684.7,3683.9,2.71446]
[1736189165224,0.02714649,3684.9,3684.1,1.3818]
[1736189165410,2.57333906,3685.1,3684.1,0.8093]
[1736189165721,0.8218,3684.8,3683.8,2.71455]
[1736189165939,0.02714649,3684.7,3683.9,0.55]
[1736189166137,0.8218,3684.8,3684.0,0.02714069]
[1736189166333,0.8218,3684.8,3684.7,35.0]
[1736189166899,0.7969,3685.2,3684.7,35.0]
[1736189167219,0.02387868,3685.1,3684.7,35.0]
[1736189167734,0.7969,3685.2,3684.7,35.0]
[1736189168867,0.7969,3685.2,3684.3,0.8093]
[1736189169037,1.13631177,3685.2,3684.3,0.8093]
[1736189169362,0.02387868,3685.1,3684.3,0.8093]
[1736189169662,1.13631177,3685.2,3684.4,2.74126748]
[1736189169867,0.82077868,3685.2,3684.8,35.0]
[1736189170066,0.7969,3685.2,3684.8,35.0]
[1736189171121,0.82217868,3685.5,3684.8,35.0]
[1736189171320,0.7983,3685.9,3685.1,2.71356]
[1736189171666,0.7983,3685.9,3685.2,0.02713275]
[1736189171964,2.73679868,3686.1,3685.3,35.0]
[1736189172529,5.73679868,3686.1,3685.3,35.0]
[1736189172768,5.71292,3686.1,3685.3,35.0]
[1736189172929,0.02387868,3686.0,3685.3,35.0]
[1736189174559,2.71315,3685.8,3685.3,35.0]
[1736189174765,2.7134,3685.4,3685.3,35.0]
[1736189174974,2.71364,3685.1,3684.1,2.71435]
[1736189175153,0.84977868,3685.0,3684.2,0.565]
[1736189175470,0.8259,3685.0,3684.3,35.0]
[1736189175890,2.73771868,3684.9,3684.3,35.0]
[1736189176260,0.84977868,3685.0,3684.3,35.0]
[1736189176464,3.56348868,3685.0,3684.3,35.0]
[1736189176686,0.84977868,3685.0,3684.3,35.0]
[1736189177009,3.56349868,3685.0,3684.3,35.0]
[1736189177290,2.71384,3684.9,3684.3,35.0]
[1736189177447,0.02387868,3684.8,3684.3,35.0]
[1736189178765,2.71386,3684.8,3684.3,35.0]
[1736189179090,4.42464677,3685.0,3684.3,35.0]
[1736189180056,0.02387868,3684.9,3684.3,35.0]
[1736189180280,2.71377,3684.9,3684.3,35.0]
[1736189180682,1.71093677,3685.0,3684.1,2.71433]
[1736189180683,0.8259,3685.0,3684.1,2.71433]
[1736189181056,1.46345345,3685.0,3684.9,35.0]
[1736189181256,4.15329477,3685.0,3684.9,35.0]
[1736189181590,4.15329477,3685.0,3683.4,0.7591]
[1736189181591,3.0,3684.8,3683.4,0.7591]
[1736189181765,2.57333906,3684.5,3683.5,0.0075]
[1736189181967,0.02387868,3684.4,3684.0,35.0]
[1736189182678,0.799,3684.3,3684.0,35.0]
[1736189182882,2.73819868,3684.2,3684.0,35.0]
[1736189184332,2.71432,3684.2,3684.0,35.0]
[1736189184828,0.02387868,3684.1,3684.0,35.0]
[1736189185639,0.82287868,3684.3,3684.0,35.0]
[1736189185788,0.799,3684.3,3683.5,2.71479]
[1736189186184,0.799,3684.3,3683.3,2.74207512]
[1736189186501,0.799,3684.3,3684.2,35.0]
[1736189187743,1.70122255,3684.4,3684.2,35.0]
[1736189187949,1.70122255,3684.4,3683.9,0.7514]
[1736189188083,1.70122255,3684.4,3684.1,2.71436]
[1736189188396,1.70122255,3684.4,3684.3,35.0]
[1736189188915,1.70122255,3684.4,3684.3,38.27921]
[1736189189120,2.83551357,3684.7,3684.5,2.71407]
[1736189189121,3.48013226,3684.6,3684.5,2.71407]
[1736189189831,3.48013226,3684.6,3684.5,37.71407]
[1736189190030,3.48013226,3685.3,3684.7,2.71388]
[1736189190336,3.48013226,3685.3,3684.5,35.0]
[1736189190337,3.48013226,3685.3,3684.9,0.7514]
[1736189190688,3.48013226,3685.3,3685.2,35.0]
[1736189191195,4.00065561,3685.3,3685.2,35.0]
[1736189191486,4.05800335,3685.3,3685.2,35.0]
[1736189192181,6.40350258,3685.3,3685.2,35.0]
[1736189192378,6.40350258,3685.3,3684.2,0.7514]
[1736189192584,0.02387868,3685.2,3684.2,0.7514]
[1736189193358,0.02387868,3685.2,3685.1,35.0]
[1736189193561,0.02387868,3685.2,3684.2,0.7514]
[1736189193562,3.63992315,3685.2,3684.2,0.7514]
[1736189193772,0.95023183,3685.2,3684.2,0.7514]
[1736189194074,0.95023183,3685.2,3684.8,35.0]
[1736189194075,0.92635315,3685.2,3684.8,35.0]
[1736189194245,3.48042691,3685.2,3684.8,35.0]
[1736189194442,3.48042691,3685.2,3684.8,35.7856]
[1736189195086,3.48042691,3685.2,3684.8,35.0]
[1736189195285,3.48042691,3685.2,3684.6,0.7856]
[1736189195500,3.48042691,3685.5,3684.7,0.02713539]
[1736189195791,3.48042691,3685.5,3685.2,35.0]
[1736189196212,3.50430559,3685.5,3685.2,35.0]
[1736189196351,1.79019086,3685.5,3685.2,35.0]
[1736189197394,2.92511854,3685.5,3685.2,35.0]
[1736189198507,2.34595544,3685.4,3685.2,35.0]
[1736189199584,1.13492768,3685.7,3685.2,35.0]
[1736189200693,1.13492768,3685.7,3685.3,0.7632]
[1736189200895,1.13492768,3685.7,3685.3,0.79033394]
[1736189201072,1.13492768,3685.7,3685.3,0.7632]
[1736189201397,1.13492768,3685.7,3685.4,35.0]
[1736189201611,2.34595544,3685.8,3685.4,35.0]
[1736189201757,2.34595544,3685.8,3685.3,0.7632]
[1736189202289,2.34595544,3685.8,3685.7,35.0]
[1736189202657,3.48088312,3685.9,3685.7,35.0]
[1736189203096,11.49528868,3685.8,3685.7,35.0]
[1736189203391,0.7616,3685.4,3684.4,3.49861]
[1736189203595,0.78547868,3685.4,3684.4,3.49861]
[1736189203770,0.78547868,3685.4,3684.8,35.0]
[1736189204277,0.7616,3685.4,3684.8,35.0]
[1736189204483,4.58144023,3685.9,3684.9,3.49729537]
[1736189204484,6.97354312,3685.9,3684.9,3.49729537]
[1736189204659,4.26048312,3685.9,3685.0,2.71369]
[1736189204997,4.2843618,3685.9,3685.2,35.0]
[1736189205508,0.93819969,3685.3,3685.2,35.0]
[1736189206368,1.91452768,3685.9,3685.2,35.0]
[1736189206573,1.91452768,3685.9,3685.3,0.02713132]
[1736189207155,1.91452768,3685.9,3685.8,35.0]
[1736189207357,0.7796,3685.9,3685.8,35.0]
[1736189208257,4.26117393,3685.9,3685.8,35.0]
[1736189209961,5.12871058,3685.9,3685.8,35.0]
[1736189210156,7.84175058,3685.9,3685.8,35.0]
[1736189210355,6.7068229,3685.9,3685.8,35.0]
[1736189210557,3.9937829,3685.9,3685.8,35.0]
[1736189210801,2.34664625,3685.9,3685.8,35.0]
[1736189211922,2.71304,3685.9,3685.8,35.0]
[1736189213209,3.50981868,3685.9,3685.8,35.0]
[1736189213560,5.85646493,3685.9,3685.8,35.0]
[1736189213728,7.88749625,3685.9,3685.8,35.0]
[1736189213919,10.83258625,3685.9,3685.8,35.0]
[1736189214075,12.2895738,3685.9,3685.8,35.0]
[1736189214525,13.99079635,3685.9,3685.8,35.0]
[1736189214821,2.71318,3685.8,3684.9,0.8013]
[1736189215020,0.02387868,3685.7,3684.9,0.8013]
[1736189215721,2.73705868,3685.8,3685.6,35.0]
[1736189216121,3.87225059,3685.8,3684.9,0.8013]
[1736189217130,2.71321,3685.7,3684.9,0.8013]
[1736189217327,3.65187367,3685.7,3684.9,0.8013]
[1736189218439,3.65187367,3685.7,3684.6,0.7615]
[1736189218440,0.8055,3685.4,3684.6,0.7615]
[1736189218636,0.82937868,3685.4,3684.6,0.7615]
[1736189219601,0.8055,3685.4,3684.6,3.47547]
[1736189221004,0.8055,3685.4,3684.6,0.7615]
[1736189221205,0.8055,3685.4,3684.7,2.71392]
[1736189222146,0.8055,3685.4,3684.6,0.7615]
[1736189222288,1.3607046,3685.4,3684.6,0.7615]
[1736189222641,1.3607046,3685.4,3684.6,3.47548]
[1736189222820,0.8055,3685.4,3684.7,0.58463506]
[1736189223006,1.15907059,3685.7,3684.7,0.58463506]
[1736189223339,1.15907059,3685.7,3684.9,2.71377]
[1736189223634,1.13519191,3685.7,3685.1,0.8156]
[1736189223839,1.13519191,3685.7,3685.2,2.71349]
[1736189224188,1.13519191,3685.7,3685.3,2.71347]
[1736189224990,1.13519191,3685.7,3685.3,2.57333906]
[1736189225191,0.02387868,3686.0,3685.3,2.57333906]
[1736189225192,1.13519191,3686.0,3685.7,2.71317]
[1736189225432,1.13519191,3686.0,3685.7,2.74025876]
[1736189225632,1.13519191,3686.0,3685.9,2.71304]
[1736189225945,1.13519191,3686.0,3685.9,3.46584]
[1736189226740,1.13519191,3686.4,3685.9,3.46584]
[1736189227033,1.13519191,3686.4,3686.0,0.02712628]
[1736189227195,1.13519191,3686.4,3685.9,3.46584]
[1736189227891,0.7692,3686.6,3686.0,0.02712639]
[1736189228095,1.13519191,3686.8,3686.3,1.3083]
[1736189228298,1.13519191,3686.8,3686.6,0.7583]
[1736189228582,1.13519191,3686.8,3686.7,2.71245]
[1736189228747,1.13519191,3686.8,3686.6,0.78542244]
[1736189228895,1.13519191,3686.8,3686.6,0.7583]
[1736189229310,1.94439191,3687.4,3686.6,0.78542253]
[1736189229942,0.02387868,3687.3,3686.4,0.7733]
[1736189231108,0.02387868,3687.3,3686.4,3.48594]
[1736189231938,3.09074282,3687.4,3686.5,0.57712127]
[1736189232924,3.09074282,3687.4,3686.5,0.55]
[1736189233443,1.97942959,3687.4,3686.5,0.55]
[1736189234222,0.58265015,3687.3,3686.5,0.55]
[1736189234757,0.02387868,3687.2,3686.4,0.7583]
[1736189234920,2.71226,3687.0,3686.0,2.71294]
[1736189235249,2.71226,3687.0,3686.1,0.0271249]
[1736189235430,0.38061255,3686.9,3686.1,0.015]
[1736189235603,0.8312,3687.1,3686.3,0.565]
[1736189235804,0.8312,3687.1,3686.2,0.7975]
[1736189235805,0.02387868,3687.0,3686.2,0.79]
[1736189237259,0.8312,3687.1,3686.3,0.02712404]
[1736189237427,0.8312,3687.1,3686.2,3.50277]
[1736189238573,0.02387868,3687.0,3686.2,0.79]
[1736189238709,0.35672487,3686.9,3686.2,0.79]
[1736189240244,0.02387868,3686.8,3686.0,0.8275]
[1736189240559,3.47172,3686.7,3685.8,0.8275]
[1736189240865,2.73646868,3686.6,3685.8,0.8275]
[1736189241359,2.71298,3686.0,3685.1,0.8275]
[1736189241657,0.02387868,3685.9,3685.1,0.8275]
[1736189241824,0.7592,3685.8,3684.7,1.95355031]
[1736189242028,0.02387868,3685.7,3684.8,0.02713562]
[1736189242559,0.02387868,3685.7,3684.7,0.8275]
[1736189242759,0.35952045,3685.7,3684.8,0.02713523]
[1736189243682,0.35952045,3685.7,3684.8,2.74097523]
[1736189243893,0.33564177,3685.7,3684.8,2.74097523]
[1736189244194,3.07271045,3685.7,3684.8,0.02713523]
[1736189244392,2.71327,3685.6,3684.7,0.8275]
[1736189244540,0.40707773,3685.5,3684.7,0.8275]
[1736189245140,0.7605,3685.4,3684.3,3.49795]
[1736189245381,0.02387868,3685.3,3684.4,3.26412]
[1736189246181,0.02387868,3685.3,3684.4,2.71412]
[1736189246380,0.02387868,3685.3,3684.5,0.02713745]
[1736189246538,0.7605,3685.4,3684.5,0.57713745]
[1736189246734,4.12194177,3685.7,3684.7,3.5452]
[1736189246991,0.82329292,3685.6,3684.8,0.02713522]
[1736189247173,0.82329292,3685.6,3684.7,3.5452]
[1736189247396,0.79941424,3685.6,3684.8,0.02713523]
[1736189247603,0.82329292,3685.6,3684.8,0.02713523]
[1736189248715,0.81017868,3685.7,3684.9,0.015]
[1736189249027,1.13519191,3685.9,3685.1,2.71362]
[1736189250827,0.82617868,3686.0,3685.1,2.71362]
[1736189251031,0.82617868,3686.0,3684.9,0.565]
[1736189251188,1.90699191,3686.3,3685.5,6.10763906]
[1736189251371,2.42140528,3686.3,3685.6,0.02712877]
[1736189251571,2.42140528,3686.3,3685.5,3.5343]
[1736189251772,2.42140528,3686.3,3685.5,0.821]
[1736189252014,1.28621337,3686.3,3685.5,0.821]
[1736189252592,1.13519191,3686.4,3685.6,0.02712897]
[1736189252890,1.13519191,3686.4,3685.6,0.57712897]
[1736189253227,4.98076674,3686.7,3686.1,0.7884]
[1736189253228,1.13519191,3686.5,3686.1,0.7884]
[1736189253767,1.13519191,3686.5,3686.1,0.81552562]
[1736189254492,0.8007,3686.9,3686.1,0.81552562]
[1736189254846,1.43562845,3686.9,3686.1,0.81552562]
[1736189255175,1.13519191,3687.0,3686.2,0.55]
[1736189255368,1.15907059,3687.0,3686.2,0.55]
[1736189256020,1.94699191,3687.2,3686.3,0.02712359]
[1736189256186,1.94699191,3687.2,3686.3,2.73979359]
[1736189256521,0.02387868,3687.1,3686.3,2.73979359]
[1736189257224,0.8118,3687.2,3686.3,2.73979359]
[1736189257781,1.97087059,3687.5,3686.6,0.7866]
[1736189257980,3.19013307,3687.5,3686.7,0.02712137]
[1736189258183,3.20015611,3687.5,3686.6,0.58493985]
[1736189258377,3.20015611,3687.5,3686.7,0.01680339]
[1736189258643,1.98089363,3687.5,3686.7,0.01680339]
[1736189258879,0.84570172,3687.5,3686.7,0.01680339]
[1736189259394,3.55757172,3687.5,3686.7,0.01680339]
[1736189259589,3.55757172,3687.5,3686.6,0.58493985]
[1736189260198,3.55757172,3687.5,3686.7,0.01680338]
[1736189260394,4.25100883,3687.5,3686.7,0.01680338]
[1736189260599,4.25100883,3687.5,3686.6,0.58493985]
[1736189261330,2.71194,3687.4,3686.6,0.58493985]
[1736189263046,1.53913883,3687.5,3686.6,0.58493985]
[1736189263219,1.53913883,3687.5,3686.7,0.01680337]
[1736189264138,0.53861307,3687.4,3686.5,0.55]
[1736189264318,0.53861307,3687.4,3686.5,2.71256]
[1736189264523,3.55756172,3687.5,3686.6,0.01680336]
[1736189265041,0.8118,3687.5,3686.7,0.655]
[1736189265188,0.8118,3687.5,3686.8,2.72917014]
[1736189266197,0.8118,3687.5,3687.0,2.71222]
[1736189266354,1.96719191,3687.8,3687.1,2.728934]
[1736189267123,1.13519191,3687.8,3687.3,2.71197]
[1736189267337,1.13519191,3687.8,3687.4,0.0167907]
[1736189268360,1.93469191,3688.1,3687.4,0.0167907]
[1736189269206,2.57280087,3688.1,3687.4,0.0167907]
[1736189269436,1.43760896,3688.1,3687.4,0.0167907]
[1736189271460,1.43760896,3688.1,3687.4,2.7287207]
[1736189271770,0.7783,3688.4,3687.5,0.55]
[1736189272061,0.7783,3688.4,3687.6,0.01678511]
[1736189272357,0.03389258,3688.3,3687.5,2.71185]
[1736189272928,0.03389258,3688.3,3687.3,0.55]
[1736189272929,0.03389258,3688.3,3687.6,2.71176]
[1736189273156,0.19473845,3688.2,3687.6,2.71176]
[1736189273355,0.19473845,3688.2,3687.4,0.015]
[1736189273557,0.03389258,3688.3,3687.5,0.55]
[1736189273851,0.7783,3688.4,3687.5,0.55]
[1736189274058,0.7783,3688.4,3687.6,0.0167851]
[1736189274554,0.7783,3688.4,3687.2,3.22833906]
[1736189274555,0.7783,3688.2,3687.2,3.36706]
[1736189274758,0.7783,3688.2,3686.9,3.11458519]
[1736189274759,0.8161,3688.0,3687.0,2.71221]
[1736189274984,0.39003467,3687.9,3686.9,0.655]
[1736189275119,2.71176,3687.7,3686.6,2.90551]
[1736189275453,0.03389515,3687.9,3686.6,2.90551]
[1736189275454,0.8161,3687.5,3686.6,0.193]
[1736189275654,0.85000034,3687.5,3686.6,0.193]
[1736189277261,0.85000034,3687.5,3686.6,2.9055]
[1736189277569,1.20618037,3687.5,3686.6,2.9055]
[1736189278058,1.20618037,3687.5,3686.7,2.72925053]
[1736189278217,1.17228003,3687.5,3686.7,2.71245]
[1736189279456,0.8161,3687.5,3686.8,2.71237]
[1736189279817,0.0338989,3687.4,3686.4,0.655]
[1736189280023,2.57333906,3687.3,3686.1,3.36787]
[1736189280374,0.8279,3686.9,3685.9,2.71303]
[1736189280579,0.03390589,3686.8,3686.0,0.55]
[1736189280872,0.03390589,3686.8,3685.9,2.71303]
[1736189281022,0.03390589,3686.8,3686.0,0.55]
[1736189281655,0.03390589,3686.8,3686.1,0.0075]
[1736189281858,0.8279,3686.9,3686.4,2.71266]
[1736189282561,0.8279,3686.9,3686.2,3.27781]
[1736189283069,0.8279,3686.9,3686.2,0.565]
[1736189283227,0.8279,3686.9,3686.3,2.71271]
[1736189283769,0.8279,3686.9,3686.4,0.01680695]
[1736189284267,0.8279,3686.9,3686.3,2.71271]
[1736189285962,0.8279,3686.9,3686.8,35.0]
[1736189288293,0.8067,3687.3,3686.8,35.0]
[1736189288732,0.8067,3687.3,3686.3,2.58083906]
[1736189288889,0.8067,3687.3,3686.6,2.71245]
[1736189289403,0.8144,3687.6,3687.2,35.0]
[1736189289561,1.13519191,3687.7,3687.4,0.655]
[1736189289748,1.13519191,3687.7,3687.5,2.7286284]
[1736189289949,1.13519191,3687.9,3687.5,2.71185]
[1736189290249,1.13519191,3687.9,3687.8,35.0]
[1736189291263,0.7922,3688.4,3687.8,35.0]
[1736189291450,0.7922,3688.4,3687.5,2.71185]
[1736189291649,0.7922,3688.4,3687.6,0.01678518]
[1736189291889,0.7922,3688.4,3688.0,35.0]
[1736189292089,1.25944145,3688.4,3688.0,35.0]
[1736189292445,0.7922,3688.4,3688.0,35.0]
[1736189293891,0.82609145,3688.4,3688.0,35.0]
[1736189294596,0.7922,3688.4,3688.0,35.0]
[1736189298306,1.96349191,3688.6,3688.1,0.01678181]
[1736189299008,1.96349191,3688.6,3688.2,35.0]
[1736189299204,2.83126784,3688.6,3688.2,35.0]
[1736189300102,0.9380363,3688.5,3688.2,35.0]
[1736189305809,0.8283,3688.6,3688.2,35.0]
[1736189306513,2.71127,3688.3,3688.2,35.0]
[1736189306686,3.47067,3688.3,3688.2,35.0]
[1736189306886,3.82112582,3688.3,3688.2,35.0]
[1736189308482,8.82112582,3688.3,3688.2,35.0]
[1736189308876,7.96270582,3688.3,3688.2,35.0]
[1736189309076,3.82112582,3688.3,3688.2,35.0]
[1736189309304,5.97032582,3688.3,3688.2,35.0]
[1736189310743,2.71175,3687.7,3686.8,0.655]
[1736189311042,2.71175,3687.7,3687.6,35.0]
[1736189314322,8.53274849,3687.7,3687.6,35.0]
[1736189314528,8.8013,3687.7,3687.6,35.0]
[1736189314727,2.71237,3686.8,3686.7,1.12605031]
[1736189315021,5.86241391,3686.8,3686.7,1.12605031]
[1736189315223,9.074157,3686.8,3686.7,36.12605031]
[1736189316183,9.074157,3686.8,3686.7,1.12605031]
[1736189316993,7.99359994,3686.8,3685.7,2.71315]
[1736189317198,0.03390946,3686.7,3685.8,0.01681888]
[1736189317605,0.03390946,3686.7,3686.6,35.0]
[1736189317813,7.72236294,3686.8,3686.6,35.0]
[1736189318021,7.72236294,3686.8,3685.7,2.71315]
[1736189318229,1.13405801,3686.4,3685.8,0.01681889]
[1736189318410,1.13405801,3686.4,3686.3,35.0]
[1736189319130,4.08049248,3686.6,3686.3,35.0]
[1736189319131,2.10616583,3686.6,3686.3,35.0]
[1736189319427,2.10616583,3686.6,3685.7,2.71315]
[1736189319603,2.07225644,3686.6,3685.8,0.01681893]
[1736189319925,3.51194693,3686.7,3686.5,35.0]
[1736189320141,3.47803744,3686.7,3685.8,2.71311]
[1736189320292,4.60670498,3686.7,3685.8,0.01681894]
[1736189320489,2.71284,3686.2,3685.3,0.655]
[1736189320814,0.8288,3686.0,3685.9,35.0]
[1736189322017,1.76603219,3686.0,3685.9,35.0]
[1736189322214,1.76603219,3686.0,3685.3,0.655]
[1736189322413,1.76603219,3686.0,3685.4,0.01682743]
[1736189322919,0.93723219,3686.0,3685.4,0.56682743]
[1736189323133,0.93723219,3686.0,3685.9,35.0]
[1736189323792,3.52917,3686.4,3685.9,35.0]
[1736189324033,2.74666127,3686.3,3685.4,0.55]
[1736189324196,2.74666127,3686.3,3684.8,0.655]
[1736189324197,2.71309,3685.9,3684.8,0.655]
[1736189324393,2.74700771,3685.9,3685.5,35.0]
[1736189324597,2.71309,3685.9,3685.5,35.0]
[1736189325235,0.03391713,3685.8,3685.5,35.0]
[1736189325537,0.8239,3685.7,3685.5,35.0]
[1736189325757,0.85781718,3685.7,3685.5,35.0]
[1736189327561,0.8239,3685.7,3685.5,35.0]
[1736189329339,5.0,3685.6,3684.8,0.655]
[1736189329639,2.74724771,3685.5,3684.8,0.655]
[1736189329849,2.74724771,3685.5,3684.9,35.0]
[1736189330053,0.8238,3685.4,3684.9,35.0]
[1736189330258,2.74742239,3685.3,3684.9,35.0]
[1736189330662,0.03392239,3685.3,3684.9,35.0]
[1736189330842,0.8201,3685.7,3684.9,35.0]
[1736189331154,0.03391887,3685.6,3684.9,35.0]
[1736189331320,0.03391887,3685.6,3685.0,0.01683553]
[1736189331821,0.03391887,3685.6,3684.9,35.0]
[1736189332252,0.03391887,3685.6,3684.5,2.71404]
[1736189332624,0.39064576,3685.6,3684.5,2.71404]
[1736189332918,0.03391887,3685.6,3685.1,35.0]
[1736189333329,2.71348,3685.3,3685.1,35.0]
[1736189333768,0.8147,3685.2,3685.1,35.0]
[1736189334256,8.52825,3685.2,3685.1,35.0]
[1736189334457,5.98501,3685.2,3685.1,35.0]
[1736189334664,7.11218191,3685.2,3685.1,35.0]
[1736189334837,6.71915191,3685.2,3685.1,35.0]
[1736189335561,4.65542191,3685.2,3685.1,35.0]
[1736189335737,3.52825,3685.2,3685.1,35.0]
[1736189336053,3.0,3685.4,3685.1,35.0]
[1736189336260,2.7473405,3685.4,3685.1,35.0]
[1736189336459,2.71348,3685.3,3685.1,35.0]
[1736189336637,2.71355,3685.2,3685.1,35.0]
[1736189338070,5.73442705,3685.2,3685.1,35.0]
[1736189338279,8.79171705,3685.2,3685.1,35.0]
[1736189338499,6.86484705,3685.2,3685.1,35.0]
[1736189338802,6.86484705,3685.2,3684.2,0.655]
[1736189338930,2.71387,3684.8,3684.2,0.655]
[1736189339129,0.03392598,3684.7,3684.3,35.0]
[1736189339439,2.71379,3684.9,3684.3,35.0]
[1736189339666,2.74777597,3684.8,3684.3,35.0]
[1736189340390,0.30870357,3684.8,3684.3,35.0]
[1736189340536,0.7605,3684.7,3684.3,35.0]
[1736189340736,0.0339285,3684.6,3684.3,35.0]
[1736189340972,2.71414,3684.4,3684.3,35.0]
[1736189341532,2.71434,3684.2,3683.2,0.655]
[1736189341787,0.03393181,3684.1,3683.2,0.655]
[1736189342137,0.03393181,3684.1,3683.7,35.0]
[1736189343566,0.03393342,3684.3,3683.7,35.0]
[1736189343748,0.03393342,3684.3,3683.3,0.5725]
[1736189343958,0.03393342,3684.3,3683.4,2.73165885]
[1736189344349,0.7547,3684.4,3684.2,35.0]
[1736189344573,3.83892903,3684.7,3684.2,35.0]
[1736189344749,2.71409,3684.5,3683.7,0.655]
[1736189344948,0.03392943,3684.4,3683.7,0.655]
[1736189345280,0.03392943,3684.4,3684.3,35.0]
[1736189345478,2.71409,3684.5,3684.3,35.0]